[Event "Titled Tuesday Blitz April 11 Early 2023"]
[White "Darini, Pouria"]
[Black "Nurgaliyeva, Zarina"]
[WhiteFideId "12502200"]
[BlackFideId "13730096"]
[WhiteElo "2482"]
[BlackElo "2134"]
[Result "1/2-1/2"]
[Round "01"]
[TimeControl "180+2"]
[Date "2023.04.11"]
[WhiteClock "0:00:28"]
[BlackClock "0:00:10"]

1. d4 {[%clk 0:02:59]}  Nf6 {[%clk 0:02:59]} 2. Bg5 {[%clk 0:02:53]}  d5 {[%clk 0:02:57]} 3. Bxf6 {[%clk 0:02:53]}  exf6 {[%clk 0:02:54]} 4. e3 {[%clk 0:02:53]}  Be6 {[%clk 0:02:51]} 5. c4 {[%clk 0:02:50]}  dxc4 {[%clk 0:02:41]} 6. Nd2 {[%clk 0:02:42]}  b5 {[%clk 0:02:39]} 7. a4 {[%clk 0:02:38]}  c6 {[%clk 0:02:39]} 8. Ne2 {[%clk 0:02:33]}  Nd7 {[%clk 0:02:32]} 9. Nf4 {[%clk 0:02:14]}  Bb4 {[%clk 0:02:25]} 10. Nxe6 {[%clk 0:01:58]}  fxe6 {[%clk 0:02:26]} 11. axb5 {[%clk 0:01:58]}  Bxd2+ {[%clk 0:02:24]} 12. Qxd2 {[%clk 0:01:48]}  cxb5 {[%clk 0:02:23]} 13. b3 {[%clk 0:01:40]}  Nb6 {[%clk 0:02:16]} 14. Qb4 {[%clk 0:01:26]}  Qd5 {[%clk 0:02:09]} 15. Ra5 {[%clk 0:01:08]}  a6 {[%clk 0:01:49]} 16. bxc4 {[%clk 0:01:08]}  Nxc4 {[%clk 0:01:49]} 17. Bxc4 {[%clk 0:01:08]}  Qxc4 {[%clk 0:01:49]} 18. Qxc4 {[%clk 0:01:08]}  bxc4 {[%clk 0:01:50]} 19. Kd2 {[%clk 0:01:06]}  Ke7 {[%clk 0:01:46]} 20. Kc3 {[%clk 0:01:05]}  Rhb8 {[%clk 0:01:44]} 21. Rha1 {[%clk 0:01:00]}  Rb3+ {[%clk 0:01:42]} 22. Kxc4 {[%clk 0:00:32]}  Rb2 {[%clk 0:01:32]} 23. R1a2 {[%clk 0:00:30]}  Rc8+ {[%clk 0:01:25]} 24. Kd3 {[%clk 0:00:31]}  Rcc2 {[%clk 0:01:25]} 25. Rxb2 {[%clk 0:00:29]}  Rxb2 {[%clk 0:01:26]} 26. Rxa6 {[%clk 0:00:28]}  Rxf2 {[%clk 0:01:25]} 27. Ra7+ {[%clk 0:00:28]}  Kf8 {[%clk 0:01:26]} 28. g4 {[%clk 0:00:09]}  Rxh2 {[%clk 0:01:24]} 29. Ke4 {[%clk 0:00:10]}  Rf2 {[%clk 0:01:17]} 30. d5 {[%clk 0:00:08]}  exd5+ {[%clk 0:01:12]} 31. Kxd5 {[%clk 0:00:09]}  Rg2 {[%clk 0:01:08]} 32. Ke6 {[%clk 0:00:09]}  g6 {[%clk 0:00:42]} 33. Kxf6 {[%clk 0:00:09]}  Ke8 {[%clk 0:00:35]} 34. g5 {[%clk 0:00:04]}  Rf2+ {[%clk 0:00:27]} 35. Kg7 {[%clk 0:00:04]}  Rf5 {[%clk 0:00:27]} 36. Kh6 {[%clk 0:00:04]}  Re5 {[%clk 0:00:24]} 37. Rxh7 {[%clk 0:00:05]}  Rxe3 {[%clk 0:00:25]} 38. Kxg6 {[%clk 0:00:03]}  Re6+ {[%clk 0:00:24]} 39. Kf5 {[%clk 0:00:03]}  Ra6 {[%clk 0:00:22]} 40. Rb7 {[%clk 0:00:02]}  Kf8 {[%clk 0:00:23]} 41. Kg4 {[%clk 0:00:03]}  Kg8 {[%clk 0:00:22]} 42. Kh5 {[%clk 0:00:03]}  Kh8 {[%clk 0:00:21]} 43. Rb8+ {[%clk 0:00:04]}  Kg7 {[%clk 0:00:21]} 44. Rb7+ {[%clk 0:00:05]}  Kh8 {[%clk 0:00:21]} 45. Rb5 {[%clk 0:00:06]}  Kg7 {[%clk 0:00:20]} 46. Rf5 {[%clk 0:00:06]}  Kg8 {[%clk 0:00:16]} 47. Re5 {[%clk 0:00:07]}  Kg7 {[%clk 0:00:16]} 48. Kg4 {[%clk 0:00:08]}  Ra4+ {[%clk 0:00:15]} 49. Kf5 {[%clk 0:00:08]}  Ra6 {[%clk 0:00:16]} 50. Re7+ {[%clk 0:00:09]}  Kf8 {[%clk 0:00:15]} 51. Rd7 {[%clk 0:00:09]}  Kg8 {[%clk 0:00:16]} 52. Rc7 {[%clk 0:00:10]}  Kf8 {[%clk 0:00:16]} 53. Rb7 {[%clk 0:00:10]}  Kg8 {[%clk 0:00:16]} 54. Rc7 {[%clk 0:00:10]}  Kf8 {[%clk 0:00:17]} 55. Rc4 {[%clk 0:00:10]}  Kg8 {[%clk 0:00:17]} 56. Rd4 {[%clk 0:00:11]}  Kg7 {[%clk 0:00:17]} 57. Rd7+ {[%clk 0:00:11]}  Kg8 {[%clk 0:00:17]} 58. Kg4 {[%clk 0:00:12]}  Kf8 {[%clk 0:00:16]} 59. Kh5 {[%clk 0:00:13]}  Kg8 {[%clk 0:00:17]} 60. Rc7 {[%clk 0:00:13]}  Kf8 {[%clk 0:00:17]} 61. Rb7 {[%clk 0:00:14]}  Kg8 {[%clk 0:00:17]} 62. Rb5 {[%clk 0:00:14]}  Kg7 {[%clk 0:00:14]} 63. Rd5 {[%clk 0:00:15]}  Kh7 {[%clk 0:00:13]} 64. Rd7+ {[%clk 0:00:15]}  Kg8 {[%clk 0:00:13]} 65. Re7 {[%clk 0:00:16]}  Kf8 {[%clk 0:00:13]} 66. Rh7 {[%clk 0:00:17]}  Kg8 {[%clk 0:00:13]} 67. Rh6 {[%clk 0:00:17]}  Ra1 {[%clk 0:00:09]} 68. Rd6 {[%clk 0:00:17]}  Ra7 {[%clk 0:00:05]} 69. Kh6 {[%clk 0:00:15]}  Rh7+ {[%clk 0:00:03]} 70. Kg6 {[%clk 0:00:16]}  Rg7+ {[%clk 0:00:03]} 71. Kf5 {[%clk 0:00:16]}  Rf7+ {[%clk 0:00:03]} 72. Kg6 {[%clk 0:00:15]}  Rg7+ {[%clk 0:00:03]} 73. Kf5 {[%clk 0:00:15]}  Rf7+ {[%clk 0:00:03]} 74. Rf6 {[%clk 0:00:16]}  Ra7 {[%clk 0:00:02]} 75. Kg6 {[%clk 0:00:15]}  Rg7+ {[%clk 0:00:02]} 76. Kh5 {[%clk 0:00:16]}  Rh7+ {[%clk 0:00:03]} 77. Kg4 {[%clk 0:00:16]}  Ra7 {[%clk 0:00:03]} 78. Rc6 {[%clk 0:00:17]}  Ra4+ {[%clk 0:00:02]} 79. Kh5 {[%clk 0:00:16]}  Ra7 {[%clk 0:00:03]} 80. g6 {[%clk 0:00:16]}  Kg7 {[%clk 0:00:03]} 81. Rd6 {[%clk 0:00:16]}  Rb7 {[%clk 0:00:03]} 82. Rd5 {[%clk 0:00:16]}  Ra7 {[%clk 0:00:03]} 83. Re5 {[%clk 0:00:16]}  Rb7 {[%clk 0:00:04]} 84. Rf5 {[%clk 0:00:17]}  Ra7 {[%clk 0:00:04]} 85. Kg5 {[%clk 0:00:17]}  Rb7 {[%clk 0:00:05]} 86. Rd5 {[%clk 0:00:18]}  Ra7 {[%clk 0:00:05]} 87. Rb5 {[%clk 0:00:19]}  Rc7 {[%clk 0:00:06]} 88. Ra5 {[%clk 0:00:19]}  Rb7 {[%clk 0:00:06]} 89. Rc5 {[%clk 0:00:20]}  Rd7 {[%clk 0:00:07]} 90. Rf5 {[%clk 0:00:20]}  Ra7 {[%clk 0:00:07]} 91. Re5 {[%clk 0:00:20]}  Rb7 {[%clk 0:00:07]} 92. Rd5 {[%clk 0:00:20]}  Ra7 {[%clk 0:00:08]} 93. Rb5 {[%clk 0:00:20]}  Rc7 {[%clk 0:00:08]} 94. Ra5 {[%clk 0:00:21]}  Rb7 {[%clk 0:00:08]} 95. Rc5 {[%clk 0:00:21]}  Rd7 {[%clk 0:00:09]} 96. Rb5 {[%clk 0:00:22]}  Ra7 {[%clk 0:00:09]} 97. Rf5 {[%clk 0:00:23]}  Rc7 {[%clk 0:00:10]} 98. Kf4 {[%clk 0:00:23]}  Rb7 {[%clk 0:00:10]} 99. Rd5 {[%clk 0:00:24]}  Kxg6 {[%clk 0:00:10]} 100. Rd6+ {[%clk 0:00:25]}  Kf7 {[%clk 0:00:10]} 101. Ke5 {[%clk 0:00:25]}  Ke7 {[%clk 0:00:09]} 102. Kd5 {[%clk 0:00:26]}  Rb5+ {[%clk 0:00:09]} 103. Kc6 {[%clk 0:00:27]}  Rb6+ {[%clk 0:00:10]} 104. Kxb6 {[%clk 0:00:28]}  Kxd6 {[%clk 0:00:10]} 1/2-1/2


[Site "https://www.chess.com"]

[Event "Titled Tuesday Blitz April 11 Early 2023"]
[White "Mamedov, Edgar"]
[Black "Smith, Garrett L"]
[WhiteFideId "13739980"]
[BlackFideId "2024829"]
[WhiteElo "2330"]
[BlackElo "2321"]
[Result "1-0"]
[Round "01"]
[TimeControl "180+2"]
[Date "2023.04.11"]
[WhiteClock "0:00:03"]
[BlackClock "0:00:05"]

1. d4 {[%clk 0:02:59]}  Nf6 {[%clk 0:02:59]} 2. Nf3 {[%clk 0:02:59]}  g6 {[%clk 0:03:00]} 3. g3 {[%clk 0:02:58]}  Bg7 {[%clk 0:02:59]} 4. Bg2 {[%clk 0:02:58]}  c6 {[%clk 0:03:00]} 5. O-O {[%clk 0:02:59]}  d5 {[%clk 0:03:00]} 6. c4 {[%clk 0:02:59]}  O-O {[%clk 0:03:00]} 7. b3 {[%clk 0:02:58]}  a5 {[%clk 0:02:59]} 8. Nc3 {[%clk 0:02:56]}  Na6 {[%clk 0:02:55]} 9. Bb2 {[%clk 0:02:56]}  Bf5 {[%clk 0:02:54]} 10. Ne5 {[%clk 0:02:52]}  Nc7 {[%clk 0:02:47]} 11. Rc1 {[%clk 0:02:51]}  dxc4 {[%clk 0:02:42]} 12. Nxc4 {[%clk 0:02:49]}  Ncd5 {[%clk 0:02:36]} 13. Nxd5 {[%clk 0:02:46]}  cxd5 {[%clk 0:02:33]} 14. Ne5 {[%clk 0:02:35]}  Rc8 {[%clk 0:02:22]} 15. Rxc8 {[%clk 0:02:34]}  Qxc8 {[%clk 0:02:23]} 16. Qd2 {[%clk 0:02:34]}  b6 {[%clk 0:02:22]} 17. Rc1 {[%clk 0:02:34]}  Qa6 {[%clk 0:02:22]} 18. Ba3 {[%clk 0:02:32]}  Re8 {[%clk 0:02:19]} 19. Nc6 {[%clk 0:02:29]}  Bf8 {[%clk 0:02:09]} 20. Qg5 {[%clk 0:02:20]}  b5 {[%clk 0:02:03]} 21. Bf1 {[%clk 0:01:27]}  Ne4 {[%clk 0:01:52]} 22. Qe3 {[%clk 0:01:15]}  b4 {[%clk 0:01:48]} 23. Bb2 {[%clk 0:01:14]}  h5 {[%clk 0:01:21]} 24. f3 {[%clk 0:01:04]}  Nd6 {[%clk 0:01:16]} 25. Qe5 {[%clk 0:00:58]}  Be6 {[%clk 0:01:10]} 26. e4 {[%clk 0:00:49]}  Qb6 {[%clk 0:00:42]} 27. exd5 {[%clk 0:00:46]}  Bd7 {[%clk 0:00:43]} 28. Qf4 {[%clk 0:00:33]}  Bg7 {[%clk 0:00:41]} 29. Ne5 {[%clk 0:00:32]}  Bb5 {[%clk 0:00:40]} 30. Bc4 {[%clk 0:00:27]}  Bxc4 {[%clk 0:00:38]} 31. bxc4 {[%clk 0:00:26]}  Nf5 {[%clk 0:00:26]} 32. c5 {[%clk 0:00:20]}  Qb5 {[%clk 0:00:25]} 33. Qe4 {[%clk 0:00:19]}  Bh6 {[%clk 0:00:23]} 34. Re1 {[%clk 0:00:17]}  Bd2 {[%clk 0:00:19]} 35. Rd1 {[%clk 0:00:15]}  Be3+ {[%clk 0:00:19]} 36. Kg2 {[%clk 0:00:16]}  a4 {[%clk 0:00:16]} 37. Re1 {[%clk 0:00:15]}  Bh6 {[%clk 0:00:16]} 38. g4 {[%clk 0:00:14]}  hxg4 {[%clk 0:00:15]} 39. fxg4 {[%clk 0:00:14]}  Nh4+ {[%clk 0:00:15]} 40. Kg3 {[%clk 0:00:14]}  Bg5 {[%clk 0:00:13]} 41. Bc1 {[%clk 0:00:14]}  Bxc1 {[%clk 0:00:08]} 42. Rxc1 {[%clk 0:00:15]}  g5 {[%clk 0:00:08]} 43. Qe3 {[%clk 0:00:15]}  f6 {[%clk 0:00:06]} 44. Nc6 {[%clk 0:00:15]}  b3 {[%clk 0:00:04]} 45. axb3 {[%clk 0:00:13]}  axb3 {[%clk 0:00:05]} 46. Nxe7+ {[%clk 0:00:12]}  Kf7 {[%clk 0:00:06]} 47. Qe6+ {[%clk 0:00:12]}  Kg7 {[%clk 0:00:06]} 48. Qe3 {[%clk 0:00:08]}  b2 {[%clk 0:00:06]} 49. Rb1 {[%clk 0:00:09]}  Qb4 {[%clk 0:00:04]} 50. d6 {[%clk 0:00:08]}  Ng6 {[%clk 0:00:04]} 51. Nf5+ {[%clk 0:00:06]}  Kf7 {[%clk 0:00:04]} 52. Nh6+ {[%clk 0:00:04]}  Kg7 {[%clk 0:00:04]} 53. Qxe8 {[%clk 0:00:03]}  Qc3+ {[%clk 0:00:04]} 54. Kf2 {[%clk 0:00:03]}  Qc2+ {[%clk 0:00:05]} 55. Qe2 {[%clk 0:00:03]}  Qxb1 {[%clk 0:00:03]} 56. Nf5+ {[%clk 0:00:04]}  Kh7 {[%clk 0:00:03]} 57. d7 {[%clk 0:00:04]}  Qg1+ {[%clk 0:00:02]} 58. Kxg1 {[%clk 0:00:04]}  b1=Q+ {[%clk 0:00:03]} 59. Kf2 {[%clk 0:00:04]}  Qb8 {[%clk 0:00:03]} 60. Qe8 {[%clk 0:00:03]}  Qxh2+ {[%clk 0:00:04]} 61. Ke3 {[%clk 0:00:03]}  Qg1+ {[%clk 0:00:04]} 62. Kd3 {[%clk 0:00:03]}  Qd1+ {[%clk 0:00:05]} 63. Kc4 {[%clk 0:00:03]}  Qc1+ {[%clk 0:00:05]} 64. Kd5 {[%clk 0:00:03]}  Qa3 {[%clk 0:00:06]} 65. d8=Q {[%clk 0:00:03]}  Qa2+ {[%clk 0:00:07]} 66. Kd6 {[%clk 0:00:03]}  Qa6+ {[%clk 0:00:07]} 67. c6 {[%clk 0:00:03]}  Qa3+ {[%clk 0:00:08]} 68. Kd7 {[%clk 0:00:04]}  Qg3 {[%clk 0:00:05]} 69. Qf7# {[%clk 0:00:03]} 1-0


[Site "https://www.chess.com"]

[Event "Titled Tuesday Blitz April 11 Early 2023"]
[White "Papp, Levente"]
[Black "Eggleston, Thomas A"]
[WhiteFideId "751243"]
[BlackFideId "412139"]
[WhiteElo "2380"]
[BlackElo "2155"]
[Result "1-0"]
[Round "01"]
[TimeControl "180+2"]
[Date "2023.04.11"]
[WhiteClock "0:00:45"]
[BlackClock "0:01:08"]

1. b3 {[%clk 0:02:59]}  e5 {[%clk 0:02:58]} 2. Bb2 {[%clk 0:02:59]}  d6 {[%clk 0:02:58]} 3. c4 {[%clk 0:02:59]}  f5 {[%clk 0:02:57]} 4. d4 {[%clk 0:02:53]}  e4 {[%clk 0:02:57]} 5. e3 {[%clk 0:02:47]}  Nf6 {[%clk 0:02:57]} 6. Nc3 {[%clk 0:02:42]}  c6 {[%clk 0:02:51]} 7. d5 {[%clk 0:02:40]}  Be7 {[%clk 0:02:44]} 8. Nh3 {[%clk 0:02:37]}  Nbd7 {[%clk 0:02:41]} 9. Nf4 {[%clk 0:02:11]}  Ne5 {[%clk 0:02:41]} 10. h4 {[%clk 0:02:09]}  O-O {[%clk 0:02:40]} 11. Be2 {[%clk 0:02:08]}  a5 {[%clk 0:02:31]} 12. h5 {[%clk 0:02:02]}  h6 {[%clk 0:02:29]} 13. Qc2 {[%clk 0:01:54]}  Bd7 {[%clk 0:02:23]} 14. a4 {[%clk 0:01:52]}  cxd5 {[%clk 0:02:09]} 15. Ncxd5 {[%clk 0:01:51]}  Nxd5 {[%clk 0:02:07]} 16. Nxd5 {[%clk 0:01:51]}  Be6 {[%clk 0:01:54]} 17. O-O-O {[%clk 0:01:48]}  Bxd5 {[%clk 0:01:54]} 18. Rxd5 {[%clk 0:01:47]}  Qc7 {[%clk 0:01:50]} 19. Kb1 {[%clk 0:01:41]}  Bf6 {[%clk 0:01:49]} 20. Rhd1 {[%clk 0:01:38]}  Rad8 {[%clk 0:01:47]} 21. Qd2 {[%clk 0:01:38]}  Be7 {[%clk 0:01:36]} 22. Qxa5 {[%clk 0:01:35]}  b6 {[%clk 0:01:34]} 23. Qb5 {[%clk 0:01:32]}  Nc6 {[%clk 0:01:29]} 24. Rxf5 {[%clk 0:01:31]}  Rfe8 {[%clk 0:01:15]} 25. Qd5+ {[%clk 0:01:26]}  Kh8 {[%clk 0:01:13]} 26. Bxg7+ {[%clk 0:00:52]}  Kxg7 {[%clk 0:01:10]} 27. Rf7+ {[%clk 0:00:52]}  Kh8 {[%clk 0:01:08]} 28. Qxe4 {[%clk 0:00:45]} 1-0


[Site "https://www.chess.com"]

[Event "Titled Tuesday Blitz April 11 Early 2023"]
[White "Danielyan, Vahe"]
[Black "micke12a"]
[WhiteFideId "13304828"]
[WhiteElo "2423"]
[BlackElo "2317"]
[Result "1-0"]
[Round "01"]
[TimeControl "180+2"]
[Date "2023.04.11"]
[WhiteClock "0:02:04"]
[BlackClock "0:01:49"]

1. d4 {[%clk 0:02:59]}  Nf6 {[%clk 0:02:59]} 2. c4 {[%clk 0:02:58]}  c5 {[%clk 0:02:58]} 3. d5 {[%clk 0:02:58]}  b5 {[%clk 0:02:58]} 4. cxb5 {[%clk 0:02:57]}  a6 {[%clk 0:02:59]} 5. bxa6 {[%clk 0:02:56]}  g6 {[%clk 0:02:57]} 6. Nc3 {[%clk 0:02:56]}  Bg7 {[%clk 0:02:58]} 7. Nf3 {[%clk 0:02:55]}  O-O {[%clk 0:02:58]} 8. a7 {[%clk 0:02:53]}  Rxa7 {[%clk 0:02:55]} 9. e4 {[%clk 0:02:53]}  e6 {[%clk 0:02:53]} 10. Be2 {[%clk 0:02:50]}  exd5 {[%clk 0:02:53]} 11. exd5 {[%clk 0:02:49]}  d6 {[%clk 0:02:53]} 12. O-O {[%clk 0:02:49]}  Na6 {[%clk 0:02:53]} 13. h3 {[%clk 0:02:49]}  Bb7 {[%clk 0:02:48]} 14. Bf4 {[%clk 0:02:44]}  Ne8 {[%clk 0:02:41]} 15. a3 {[%clk 0:02:39]}  Nac7 {[%clk 0:02:39]} 16. Bc4 {[%clk 0:02:31]}  Qa8 {[%clk 0:02:30]} 17. Qd2 {[%clk 0:02:15]}  Bxc3 {[%clk 0:02:02]} 18. Qxc3 {[%clk 0:02:13]}  f6 {[%clk 0:01:59]} 19. Rad1 {[%clk 0:02:10]}  Nxd5 {[%clk 0:01:56]} 20. Qb3 {[%clk 0:02:05]}  Nc7 {[%clk 0:01:51]} 21. Bxd6 {[%clk 0:02:04]}  Kg7 {[%clk 0:01:51]} 22. Bxf8+ {[%clk 0:02:03]}  Qxf8 {[%clk 0:01:50]} 23. Bxd5 {[%clk 0:02:03]}  Bxd5 {[%clk 0:01:49]} 24. Rxd5 {[%clk 0:02:03]}  Nxd5 {[%clk 0:01:49]} 25. Qxd5 {[%clk 0:02:04]} 1-0


[Site "https://www.chess.com"]

[Event "Titled Tuesday Blitz April 11 Early 2023"]
[White "Megalios, Konstantinos"]
[Black "Mikayel99"]
[WhiteFideId "4238044"]
[WhiteElo "2277"]
[BlackElo "2316"]
[Result "1-0"]
[Round "01"]
[TimeControl "180+2"]
[Date "2023.04.11"]
[WhiteClock "0:00:19"]
[BlackClock "0:00:13"]

1. e4 {[%clk 0:02:59]}  c5 {[%clk 0:02:59]} 2. Nf3 {[%clk 0:02:59]}  d6 {[%clk 0:02:57]} 3. d4 {[%clk 0:02:59]}  cxd4 {[%clk 0:02:58]} 4. Nxd4 {[%clk 0:02:59]}  Nf6 {[%clk 0:02:57]} 5. Nc3 {[%clk 0:03:00]}  a6 {[%clk 0:02:56]} 6. Be3 {[%clk 0:02:55]}  e5 {[%clk 0:02:56]} 7. Nb3 {[%clk 0:02:55]}  Be7 {[%clk 0:02:56]} 8. f3 {[%clk 0:02:54]}  Be6 {[%clk 0:02:56]} 9. Qd2 {[%clk 0:02:54]}  h5 {[%clk 0:02:56]} 10. O-O-O {[%clk 0:02:43]}  Nbd7 {[%clk 0:02:55]} 11. Kb1 {[%clk 0:02:43]}  Rc8 {[%clk 0:02:51]} 12. Nd5 {[%clk 0:02:40]}  Nxd5 {[%clk 0:02:51]} 13. exd5 {[%clk 0:02:40]}  Bf5 {[%clk 0:02:52]} 14. Bd3 {[%clk 0:02:38]}  Bxd3 {[%clk 0:02:52]} 15. Qxd3 {[%clk 0:02:38]}  Bg5 {[%clk 0:02:53]} 16. Bf2 {[%clk 0:02:35]}  b5 {[%clk 0:02:39]} 17. g3 {[%clk 0:02:21]}  O-O {[%clk 0:02:24]} 18. h4 {[%clk 0:02:11]}  Bh6 {[%clk 0:02:18]} 19. g4 {[%clk 0:02:11]}  Bf4 {[%clk 0:02:14]} 20. Rhe1 {[%clk 0:01:47]}  Rc4 {[%clk 0:01:39]} 21. Re4 {[%clk 0:01:43]}  Rxe4 {[%clk 0:01:36]} 22. Qxe4 {[%clk 0:01:42]}  Nf6 {[%clk 0:01:34]} 23. Qe2 {[%clk 0:01:37]}  Qc7 {[%clk 0:01:28]} 24. Be1 {[%clk 0:01:20]}  Rc8 {[%clk 0:01:24]} 25. g5 {[%clk 0:01:18]}  Nd7 {[%clk 0:01:20]} 26. Na5 {[%clk 0:01:19]}  Nb6 {[%clk 0:01:09]} 27. b3 {[%clk 0:01:11]}  g6 {[%clk 0:00:49]} 28. Qe4 {[%clk 0:01:07]}  Kg7 {[%clk 0:00:42]} 29. Bb4 {[%clk 0:01:05]}  Bg3 {[%clk 0:00:35]} 30. Rc1 {[%clk 0:00:29]}  Bf4 {[%clk 0:00:32]} 31. Rd1 {[%clk 0:00:26]}  Bg3 {[%clk 0:00:32]} 32. Nc6 {[%clk 0:00:20]}  Nxd5 {[%clk 0:00:24]} 33. Rxd5 {[%clk 0:00:21]}  Qxc6 {[%clk 0:00:24]} 34. Bxd6 {[%clk 0:00:19]}  Bxh4 {[%clk 0:00:17]} 35. Bxe5+ {[%clk 0:00:19]}  Kg8 {[%clk 0:00:18]} 36. Rd8+ {[%clk 0:00:18]}  Kh7 {[%clk 0:00:13]} 37. Qxc6 {[%clk 0:00:18]}  Rxc6 {[%clk 0:00:13]} 38. Rh8# {[%clk 0:00:19]} 1-0


[Site "https://www.chess.com"]

[Event "Titled Tuesday Blitz April 11 Early 2023"]
[White "Kaidanov, Gregory"]
[Black "Havas, Ladislav"]
[WhiteFideId "2008564"]
[BlackFideId "14501090"]
[WhiteElo "2547"]
[BlackElo "2202"]
[Result "0-1"]
[Round "01"]
[TimeControl "180+2"]
[Date "2023.04.11"]
[WhiteClock "0:02:58"]
[BlackClock "0:02:55"]

1. Nf3 {[%clk 0:02:59]}  Nf6 {[%clk 0:02:59]} 2. g3 {[%clk 0:02:59]}  g6 {[%clk 0:03:00]} 3. b3 {[%clk 0:02:59]}  Bg7 {[%clk 0:03:01]} 4. Bb2 {[%clk 0:02:59]}  O-O {[%clk 0:03:02]} 5. Bg2 {[%clk 0:02:59]}  d6 {[%clk 0:03:01]} 6. d4 {[%clk 0:03:00]}  Nbd7 {[%clk 0:02:59]} 7. O-O {[%clk 0:02:57]}  e5 {[%clk 0:02:58]} 8. dxe5 {[%clk 0:02:58]}  Ng4 {[%clk 0:02:58]} 9. c4 {[%clk 0:02:56]}  Ngxe5 {[%clk 0:02:58]} 10. Qd2 {[%clk 0:02:56]}  Nxf3+ {[%clk 0:02:57]} 11. Bxf3 {[%clk 0:02:57]}  Bxb2 {[%clk 0:02:55]} 12. Qxb2 {[%clk 0:02:58]}  Qf6 {[%clk 0:02:55]} 13. Bg2 {[%clk 0:02:58]}  Qxb2 {[%clk 0:02:55]} 0-1


[Site "https://www.chess.com"]

[Event "Titled Tuesday Blitz April 11 Early 2023"]
[White "Haub, Thorsten Michael"]
[Black "Ismagilov, Damir"]
[WhiteFideId "4610776"]
[BlackFideId "34199982"]
[WhiteElo "2344"]
[BlackElo "2078"]
[Result "1-0"]
[Round "01"]
[TimeControl "180+2"]
[Date "2023.04.11"]
[WhiteClock "0:00:29"]
[BlackClock "0:00:13"]

1. g3 {[%clk 0:02:59]}  Nf6 {[%clk 0:02:56]} 2. Bg2 {[%clk 0:02:59]}  g6 {[%clk 0:02:57]} 3. d3 {[%clk 0:03:00]}  Bg7 {[%clk 0:02:57]} 4. e4 {[%clk 0:03:00]}  d6 {[%clk 0:02:57]} 5. Nf3 {[%clk 0:03:00]}  O-O {[%clk 0:02:58]} 6. O-O {[%clk 0:03:00]}  e5 {[%clk 0:02:58]} 7. Nbd2 {[%clk 0:03:00]}  Nc6 {[%clk 0:02:54]} 8. c3 {[%clk 0:02:59]}  Ne7 {[%clk 0:02:49]} 9. Re1 {[%clk 0:02:56]}  Be6 {[%clk 0:02:43]} 10. d4 {[%clk 0:02:53]}  exd4 {[%clk 0:02:37]} 11. Nxd4 {[%clk 0:02:52]}  Bg4 {[%clk 0:02:33]} 12. Qb3 {[%clk 0:02:50]}  c5 {[%clk 0:02:28]} 13. N4f3 {[%clk 0:02:47]}  Qc7 {[%clk 0:02:20]} 14. Nc4 {[%clk 0:02:39]}  Nc6 {[%clk 0:02:15]} 15. Bf4 {[%clk 0:02:36]}  Be6 {[%clk 0:02:04]} 16. Bxd6 {[%clk 0:02:24]}  Bxc4 {[%clk 0:01:19]} 17. Bxc7 {[%clk 0:02:23]}  Bxb3 {[%clk 0:01:20]} 18. axb3 {[%clk 0:02:22]}  b6 {[%clk 0:01:20]} 19. Bd6 {[%clk 0:02:20]}  Rfd8 {[%clk 0:01:16]} 20. e5 {[%clk 0:02:19]}  Ne8 {[%clk 0:01:16]} 21. Ng5 {[%clk 0:02:12]}  Nxd6 {[%clk 0:01:04]} 22. Bxc6 {[%clk 0:02:10]}  Rac8 {[%clk 0:01:04]} 23. exd6 {[%clk 0:02:09]}  Rxc6 {[%clk 0:01:04]} 24. Rxa7 {[%clk 0:02:08]}  Rcxd6 {[%clk 0:01:00]} 25. Nxf7 {[%clk 0:02:04]}  Rd1 {[%clk 0:01:00]} 26. Rxd1 {[%clk 0:02:04]}  Rxd1+ {[%clk 0:01:01]} 27. Kg2 {[%clk 0:02:04]}  Rd2 {[%clk 0:01:01]} 28. Ng5 {[%clk 0:02:02]}  Bh6 {[%clk 0:00:53]} 29. Ne4 {[%clk 0:01:54]}  Rxb2 {[%clk 0:00:53]} 30. Nf6+ {[%clk 0:01:53]}  Kf8 {[%clk 0:00:53]} 31. Nxh7+ {[%clk 0:01:53]}  Ke8 {[%clk 0:00:54]} 32. Nf6+ {[%clk 0:01:52]}  Kd8 {[%clk 0:00:55]} 33. Nd5 {[%clk 0:01:44]}  Rxb3 {[%clk 0:00:54]} 34. c4 {[%clk 0:01:43]}  b5 {[%clk 0:00:41]} 35. cxb5 {[%clk 0:01:40]}  Rxb5 {[%clk 0:00:41]} 36. Ra6 {[%clk 0:01:35]}  c4 {[%clk 0:00:40]} 37. Rxg6 {[%clk 0:01:33]}  Bf8 {[%clk 0:00:30]} 38. Ne3 {[%clk 0:01:29]}  Rc5 {[%clk 0:00:28]} 39. Rf6 {[%clk 0:01:22]}  Bg7 {[%clk 0:00:23]} 40. Rf5 {[%clk 0:01:21]}  Rc7 {[%clk 0:00:18]} 41. Rd5+ {[%clk 0:01:19]}  Ke8 {[%clk 0:00:18]} 42. Rd2 {[%clk 0:01:18]}  c3 {[%clk 0:00:19]} 43. Re2 {[%clk 0:01:17]}  Kf7 {[%clk 0:00:19]} 44. h4 {[%clk 0:01:17]}  Bh6 {[%clk 0:00:19]} 45. Rc2 {[%clk 0:01:12]}  Ke6 {[%clk 0:00:18]} 46. Kf3 {[%clk 0:01:11]}  Ke5 {[%clk 0:00:19]} 47. Ng4+ {[%clk 0:01:11]}  Kd4 {[%clk 0:00:19]} 48. Nxh6 {[%clk 0:01:12]}  Kd3 {[%clk 0:00:19]} 49. Rxc3+ {[%clk 0:01:08]}  Kxc3 {[%clk 0:00:20]} 50. Nf5 {[%clk 0:01:06]}  Kc4 {[%clk 0:00:19]} 51. Kg4 {[%clk 0:01:05]}  Kd5 {[%clk 0:00:20]} 52. f4 {[%clk 0:01:04]}  Ke6 {[%clk 0:00:20]} 53. h5 {[%clk 0:01:02]}  Rc5 {[%clk 0:00:19]} 54. Nd4+ {[%clk 0:00:52]}  Kf6 {[%clk 0:00:18]} 55. Kh4 {[%clk 0:00:51]}  Rc4 {[%clk 0:00:18]} 56. Nf3 {[%clk 0:00:49]}  Rc1 {[%clk 0:00:19]} 57. Kg4 {[%clk 0:00:47]}  Rh1 {[%clk 0:00:17]} 58. Ng5 {[%clk 0:00:46]}  Rh2 {[%clk 0:00:17]} 59. Ne4+ {[%clk 0:00:46]}  Kg7 {[%clk 0:00:16]} 60. Kg5 {[%clk 0:00:44]}  Re2 {[%clk 0:00:17]} 61. Nd6 {[%clk 0:00:43]}  Rd2 {[%clk 0:00:15]} 62. Nf5+ {[%clk 0:00:42]}  Kh7 {[%clk 0:00:16]} 63. g4 {[%clk 0:00:42]}  Rf2 {[%clk 0:00:16]} 64. Nd6 {[%clk 0:00:39]}  Rd2 {[%clk 0:00:16]} 65. Ne4 {[%clk 0:00:39]}  Rd4 {[%clk 0:00:16]} 66. Nf6+ {[%clk 0:00:39]}  Kg7 {[%clk 0:00:16]} 67. h6+ {[%clk 0:00:39]}  Kf7 {[%clk 0:00:16]} 68. Nh5 {[%clk 0:00:38]}  Rd8 {[%clk 0:00:13]} 69. Ng3 {[%clk 0:00:35]}  Rg8+ {[%clk 0:00:13]} 70. Kh5 {[%clk 0:00:35]}  Ra8 {[%clk 0:00:12]} 71. g5 {[%clk 0:00:35]}  Ra4 {[%clk 0:00:12]} 72. f5 {[%clk 0:00:34]}  Ra3 {[%clk 0:00:11]} 73. Ne4 {[%clk 0:00:33]}  Rh3+ {[%clk 0:00:09]} 74. Kg4 {[%clk 0:00:33]}  Re3 {[%clk 0:00:10]} 75. g6+ {[%clk 0:00:32]}  Kg8 {[%clk 0:00:11]} 76. Nf6+ {[%clk 0:00:30]}  Kf8 {[%clk 0:00:11]} 77. g7+ {[%clk 0:00:30]}  Kf7 {[%clk 0:00:12]} 78. g8=Q+ {[%clk 0:00:30]}  Kxf6 {[%clk 0:00:13]} 79. Qg7# {[%clk 0:00:29]} 1-0


[Site "https://www.chess.com"]